fUST/lending_fUST_20250621
["ID","MTS","AMOUNT","RATE_DAILY","PERIOD"]
[366781678,1750447843915,-365.6807665,0.00023123,2]
[366781679,1750447843924,-365.6807665,0.00023123,2]
[366781680,1750447843934,-365.6807665,0.00023123,2]
[366781681,1750447843943,-731.361533,0.00023123,2]
[366781682,1750447843953,-365.6807665,0.00023123,2]
[366781683,1750447843962,-365.6807665,0.00023123,2]
[366781684,1750447843974,-365.6807665,0.00023123,2]
[366781685,1750447843984,-340.1171458,0.00023123,2]
[366781686,1750447843994,-598.24708718,0.00023141,8]
[366781687,1750447844003,-176.235846,0.000232,7]
[366781688,1750447844013,-176.235854,0.000232,7]
[366781689,1750447844022,-500.0,0.00023296,2]
[366781690,1750447844032,-500.0,0.000233,2]
[366781691,1750447844041,-598.24708718,0.00023314,9]
[366781692,1750447844051,-500.0,0.00023362,2]
[366781693,1750447844061,-460.0,0.00023368,2]
[366781694,1750447844071,-317.7421866,0.00023397,2]
[366781695,1750447844081,-500.0,0.00023404,2]
[366781696,1750447844090,-500.0,0.00023436,2]
[366781697,1750447844100,-598.24708718,0.00023486,9]
[366781698,1750447844110,-587.0,0.00023492,2]
[366781699,1750447844121,-587.0,0.00023493,2]
[366781700,1750447844131,-500.0,0.000235,2]
[366781701,1750447844141,-500.0,0.00023514,2]
[366781702,1750447844150,-1179.297514,0.0002352,4]
[366781703,1750447844160,-500.0,0.0002354,2]
[366781704,1750447844170,-151.0,0.00023553,6]
[366781705,1750447844179,-4066.04,0.00023562,2]
[366781706,1750447844188,-504.13384681,0.0002358,2]
[366781707,1750447844197,-500.0,0.00023594,2]
[366781708,1750447844206,-500.0,0.00023613,2]
[366781709,1750447844216,-168.0,0.00023622,2]
[366781710,1750447844228,-460.0,0.00023642,2]
[366781711,1750447844237,-500.0,0.0002365,2]
[366781712,1750447844246,-598.24708718,0.00023659,9]
[366781713,1750447844255,-43718.04503109,0.00023687,2]
[366781714,1750447844264,-500.0,0.00023699,2]
[366781715,1750447844273,-1514.28,0.000237,7]
[366781716,1750447844283,-14130.68231026,0.000238,2]
[366781717,1750447844292,-223.0315306,0.00023804,2]
[366781718,1750447844301,-500.0,0.00023825,2]
[366781719,1750447844311,-500.0,0.00023826,2]
[366781720,1750447844321,-598.24708718,0.00023831,10]
[366781721,1750447844331,-151.0,0.00023835,6]
[366781722,1750447844341,-1619.404071,0.0002388,5]
[366781723,1750447844350,-1000.0,0.000239,5]
[366781724,1750447844359,-12881.6875362,0.000239,2]
[366781725,1750447844368,-424.08970194,0.000239,2]
[366781726,1750447844378,-6742.54634724,0.000239,2]
[366781727,1750447844387,-460.0,0.00023916,2]
[366781728,1750447844396,-1000.0,0.0002392,5]
[366781729,1750447844408,-500.0,0.00023935,2]
[366781730,1750447844418,-1000.0,0.0002394,5]
[366781731,1750447844428,-1000.0,0.0002396,5]
[366781732,1750447844437,-500.0,0.00023973,2]
[366781733,1750447844447,-500.0,0.00023973,2]
[366781734,1750447844457,-500.0,0.00023973,2]
[366781735,1750447844467,-500.0,0.00023973,2]
[366781736,1750447844480,-500.0,0.00023973,2]
[366781737,1750447844489,-500.0,0.00023973,2]
[366781738,1750447844498,-500.0,0.00023973,2]
[366781739,1750447844508,-500.0,0.00023973,2]
[366781740,1750447844517,-1000.0,0.0002398,5]
[366781741,1750447844526,-160.0,0.00023999,2]
[366781742,1750447844537,-224185.82320704,0.00024,2]
[366781743,1750447844554,-40025.76109891,0.00024,2]
[366781760,1750447846555,-157.90852156,0.00023929,2]
[366781761,1750447846564,-14575.41886966,0.00024,2]
[366781765,1750447847021,-389.6018726,0.00024,2]
[366781767,1750448075076,200.0,0.00022102,30]
[366781768,1750448301985,159.77149774,0.00019102,2]
[366781770,1750448358992,262.058678,0.00013699,2]
[366781772,1750448474393,-213.95836848,0.00019214,2]
[366781773,1750448565817,453.11478686,0.00019102,2]
[366781774,1750448683247,4546.88521314,0.00019102,2]
[366781775,1750448837401,290.38599188,0.000189,2]
[366781776,1750448869425,193.59066126,0.000189,2]
[366781816,1750449031911,-97.97273252,0.00019214,2]
[366781818,1750449031921,-214.66567055,0.0001929,2]
[366781820,1750449031934,-221.77440454,0.00019705,2]
[366781822,1750449031944,-300.0,0.00019805,2]
[366781824,1750449031954,-1000.0,0.00019806,2]
[366781826,1750449031963,-262.058678,0.00020187,2]
[366781828,1750449031975,-456.16290522,0.00020378,2]
[366781830,1750449031984,-300.0,0.00020414,2]
[366781832,1750449031994,-1200.0,0.00020414,2]
[366781834,1750449032007,-500.0,0.00020415,2]
[366781836,1750449032016,-500.0,0.00020415,2]
[366781838,1750449032026,-500.0,0.00020415,2]
[366781840,1750449032035,-500.0,0.00020415,2]
[366781842,1750449032045,-500.0,0.00020415,2]
[366781844,1750449032055,-500.0,0.00020415,2]
[366781846,1750449032064,-500.0,0.00020415,2]
[366781848,1750449032074,-500.0,0.00020415,2]
[366781850,1750449032083,-193.5214479,0.00020415,2]
[366781853,1750449032092,-651.05043173,0.00020415,2]
[366781855,1750449032102,-222.85447066,0.00020415,2]
[366781857,1750449032111,-213.95836848,0.00020415,2]
[366781859,1750449032122,-9985.93893331,0.00020416,2]
[366781862,1750449032134,-14914.06106669,0.00020416,2]
[366781863,1750449032143,-157.90852156,0.00020431,2]
[366781865,1750449032152,-188.124,0.00020531,2]
[366781867,1750449032162,-846.08887863,0.00020748,2]
[366781869,1750449032171,-213.51557418,0.00020749,2]
[366781871,1750449032180,-160.0,0.00020749,2]
[366781873,1750449032190,-230.06456406,0.00020749,2]
[366781875,1750449032199,-836.27303475,0.00020749,2]
[366781877,1750449032209,-424.85694595,0.00020749,2]
[366781879,1750449032218,-160.0,0.00020749,2]
[366781881,1750449032228,-523.92420239,0.00020749,2]
[366781883,1750449032237,-160.0,0.00021,2]
[366781885,1750449032247,-160.0,0.00021066,2]
[366781887,1750449032256,-207.4,0.00021066,2]
[366781889,1750449032266,-191.308544,0.00021212,2]
[366781891,1750449032276,-420.0,0.0002157,2]
[366781893,1750449032286,-364.2,0.000217,2]
[366781895,1750449032295,-517.66508985,0.00021896,2]
[366781897,1750449032304,-309.15692194,0.000219,6]
[366781899,1750449032314,-231.31118114,0.00021916,2]
[366781901,1750449032323,-500.0,0.00021916,2]
[366781903,1750449032332,-500.0,0.00021916,2]
[366781904,1750449032342,-500.0,0.00021916,2]
[366781905,1750449032351,-500.0,0.00021916,2]
[366781906,1750449032362,-500.0,0.00021916,2]
[366781907,1750449032372,-500.0,0.00021916,2]
[366781908,1750449032382,-500.0,0.00021916,2]
[366781909,1750449032392,-500.0,0.00021916,2]
[366781910,1750449032402,-500.0,0.00021916,2]
[366781911,1750449032411,-225.94234266,0.00021916,2]
[366781912,1750449032421,-500.0,0.00021916,2]
[366781913,1750449032430,-500.0,0.00021916,2]
[366781914,1750449032439,-500.0,0.00021916,2]
[366781915,1750449032449,-500.0,0.00021916,2]
[366781916,1750449032459,-500.0,0.00021916,2]
[366781917,1750449032469,-500.0,0.00021916,2]
[366781918,1750449032478,-500.0,0.00021916,2]
[366781919,1750449032487,-500.0,0.00021916,2]
[366781920,1750449032498,-500.0,0.00021916,2]
[366781921,1750449032507,-250.0,0.00021916,2]
[366781922,1750449032516,-151.0,0.00021916,2]
[366781923,1750449032526,-151.0,0.00021916,2]
[366781924,1750449032535,-151.0,0.00021916,2]
[366781925,1750449032545,-460.0,0.00021917,2]
[366781926,1750449032554,-429.98072038,0.00021917,2]
[366781927,1750449032564,-199.14533658,0.00021917,2]
[366781928,1750449032574,-310.0,0.00021917,2]
[366781929,1750449032583,-460.0,0.00021917,2]
[366781930,1750449032592,-422.94856961,0.00021917,2]
[366781932,1750449032603,-470.90289639,0.00021917,2]
[366781934,1750449032613,-268.45547002,0.00021917,2]
[366781936,1750449032622,-416.7126661,0.00021917,2]
[366781938,1750449032632,-460.0,0.00021917,2]
[366781940,1750449032642,-326.13695828,0.00021917,2]
[366781942,1750449032651,-400.0,0.00021917,2]
[366781944,1750449032661,-460.0,0.00021917,2]
[366781946,1750449032670,-460.0,0.00021917,2]
[366781948,1750449032680,-460.0,0.00021917,2]
[366781950,1750449032690,-460.0,0.00021917,2]
[366781952,1750449032700,-440.0,0.00021917,2]
[366781954,1750449032709,-460.0,0.00021917,2]
[366781956,1750449032719,-500.0,0.00021917,2]
[366781958,1750449032729,-460.0,0.00021917,2]
[366781960,1750449032739,-571.29,0.00021917,2]
[366781962,1750449032751,-460.0,0.00021917,2]
[366781963,1750449032760,-460.0,0.00021917,2]
[366781964,1750449032770,-460.0,0.00021917,2]
[366781965,1750449032779,-472.93202417,0.00021917,2]
[366781966,1750449032788,-358.9374528,0.00021917,2]
[366781968,1750449032798,-469.62838835,0.00021917,2]
[366781970,1750449032807,-469.47656936,0.00021917,2]
[366781972,1750449032817,-460.0,0.00021917,2]
[366781974,1750449032827,-500.0,0.00021917,2]
[366781976,1750449032836,-510.81729339,0.00021917,2]
[366781978,1750449032846,-205.87980037,0.00021917,2]
[366781980,1750449032855,-460.0,0.00021917,2]
[366781982,1750449032865,-252.39,0.00021917,2]
[366781984,1750449032875,-467.50438937,0.00021917,2]
[366781986,1750449032884,-463.74320035,0.00021917,2]
[366781988,1750449032893,-500.0,0.00021917,2]
[366781989,1750449032903,-204.8174442,0.00021917,2]
[366781990,1750449032912,-368.92888751,0.00021917,2]
[366781991,1750449032922,-460.0,0.00021917,2]
[366781992,1750449032936,-151.0,0.00021917,2]
[366781993,1750449032945,-500.0,0.00021917,2]
[366781994,1750449032955,-151.0,0.00021917,2]
[366781995,1750449032964,-151.0,0.00021917,2]
[366781996,1750449032975,-151.0,0.00021917,2]
[366781997,1750449032984,-152.64250514,0.00021917,2]
[366781998,1750449032994,-300.28477608,0.00021917,2]
[366781999,1750449033006,-460.0,0.00021917,2]
[366782000,1750449033015,-460.0,0.00021917,2]
[366782001,1750449033025,-460.0,0.00021917,2]
[366782002,1750449033035,-464.631749,0.00021917,2]
[366782003,1750449033045,-462.40441852,0.00021917,2]
[366782004,1750449033055,-367.66414172,0.00021917,2]
[366782005,1750449033066,-440.00512326,0.00021917,2]
[366782006,1750449033076,-460.0,0.00021917,2]
[366782007,1750449033087,-460.0,0.00021917,2]
[366782008,1750449033098,-460.0,0.00021917,2]
[366782009,1750449033107,-500.0,0.00021917,2]
[366782010,1750449033117,-460.0,0.00021917,2]
[366782011,1750449033126,-460.0,0.00021917,2]
[366782012,1750449033136,-460.0,0.00021917,2]
[366782013,1750449033146,-460.0,0.00021917,2]
[366782014,1750449033156,-460.0,0.00021917,2]
[366782015,1750449033165,-460.0,0.00021917,2]
[366782016,1750449033174,-487.60769192,0.00021917,2]
[366782017,1750449033184,-389.9,0.00021917,2]
[366782018,1750449033194,-430.0,0.00021917,2]
[366782019,1750449033203,-460.0,0.00021917,2]
[366782020,1750449033213,-440.0,0.00021917,2]
[366782021,1750449033223,-460.0,0.00021917,2]
[366782022,1750449033233,-460.0,0.00021917,2]
[366782023,1750449033244,-512.9428965,0.00021917,2]
[366782024,1750449033255,-460.0,0.00021917,2]
[366782025,1750449033265,-460.0,0.00021917,2]
[366782026,1750449033275,-460.0,0.00021917,2]
[366782027,1750449033285,-460.0,0.00021917,2]
[366782028,1750449033295,-400.41226605,0.00021917,2]
[366782029,1750449033305,-460.0,0.00021917,2]
[366782030,1750449033315,-316.61013209,0.00021917,2]
[366782578,1750449043201,-34.14620953,0.00021917,2]
[366782580,1750449043211,-460.0,0.00021917,2]
[366782582,1750449043221,-226.05218751,0.00021917,2]
[366782584,1750449043233,-233.94781249,0.00021917,2]
[366782587,1750449043243,-45.85379047,0.00021917,2]
[366782589,1750449043255,-414.14620953,0.00021917,2]
[366782591,1750449043266,-460.0,0.00021917,2]
[366782592,1750449043276,-430.0,0.00021917,2]
[366782594,1750449043286,-460.0,0.00021917,2]
[366782596,1750449043295,-460.0,0.00021917,2]
[366782598,1750449043305,-460.0,0.00021917,2]
[366782600,1750449043315,-274.14574869,0.00021917,2]
[366782602,1750449043325,-460.0,0.00021917,2]
[366782604,1750449043334,-460.0,0.00021917,2]
[366782606,1750449043346,-460.0,0.00021917,2]
[366782608,1750449043355,-448.01021229,0.00021917,2]
[366782610,1750449043365,-294.09,0.00021917,2]
[366782612,1750449043375,-604.03624937,0.00021917,2]
[366782614,1750449043384,-460.0,0.00021917,2]
[366782616,1750449043394,-460.0,0.00021917,2]
[366782618,1750449043404,-460.0,0.00021917,2]
[366782620,1750449043414,-460.0,0.00021917,2]
[366782622,1750449043424,-340.08838944,0.00021917,2]
[366782624,1750449043434,-460.0,0.00021917,2]
[366782626,1750449043444,-460.0,0.00021917,2]
[366782629,1750449043453,-460.0,0.00021917,2]
[366782632,1750449043463,-460.0,0.00021917,2]
[366782635,1750449043473,-460.0,0.00021917,2]
[366782637,1750449043483,-341.96190903,0.00021917,2]
[366782639,1750449043492,-460.0,0.00021917,2]
[366782641,1750449043501,-380.0,0.00021917,2]
[366782643,1750449043511,-448.65242438,0.00021917,2]
[366782645,1750449043521,-460.0,0.00021917,2]
[366782647,1750449043530,-460.0,0.00021917,2]
[366782649,1750449043540,-460.0,0.00021917,2]
[366782650,1750449043549,-500.00000001,0.00021917,2]
[366782652,1750449043558,-460.0,0.00021917,2]
[366782654,1750449043568,-460.0,0.00021917,2]
[366782656,1750449043578,-460.0,0.00021917,2]
[366782658,1750449043587,-410.0,0.00021917,2]
[366782660,1750449043597,-472.05868819,0.00021917,2]
[366782662,1750449043606,-460.0,0.00021917,2]
[366782664,1750449043615,-460.0,0.00021917,2]
[366782666,1750449043625,-460.0,0.00021917,2]
[366782668,1750449043635,-429.28297048,0.00021917,2]
[366782670,1750449043644,-460.0,0.00021917,2]
[366782672,1750449043654,-460.0,0.00021917,2]
[366782674,1750449043664,-460.0,0.00021917,2]
[366782676,1750449043673,-460.0,0.00021917,2]
[366782678,1750449043683,-460.0,0.00021917,2]
[366782680,1750449043693,-460.0,0.00021917,2]
[366782682,1750449043702,-460.0,0.00021917,2]
[366782684,1750449043712,-298.72084415,0.00021917,2]
[366782686,1750449043721,-460.0,0.00021917,2]
[366782688,1750449043731,-500.0,0.0002193,2]
[366782690,1750449043740,-500.0,0.0002193,2]
[366782692,1750449043750,-500.0,0.0002193,2]
[366782694,1750449043761,-151.0,0.00021944,2]
[366782696,1750449043770,-548.28354863,0.00021944,2]
[366782698,1750449043780,-151.0,0.00021944,2]
[366782700,1750449043789,-209.3546536,0.00021944,2]
[366782702,1750449043799,-503.93213778,0.00021952,2]
[366782704,1750449043808,-500.0,0.00021952,2]
[366782706,1750449043818,-151.0,0.00021972,2]
[366782708,1750449043828,-151.0,0.00021972,2]
[366782710,1750449043838,-151.0,0.00021999,2]
[366782712,1750449043847,-151.0,0.00021999,2]
[366782714,1750449043856,-222.71841083,0.0002201,2]
[366782716,1750449043866,-151.0,0.00022027,2]
[366782718,1750449043876,-309.1569218,0.00022038,6]
[366782720,1750449043886,-245.0,0.00022054,2]
[366782721,1750449043895,-309.1569218,0.00022176,6]
[366782723,1750449043904,-500.0,0.0002218,2]
[366782725,1750449043914,-460.0,0.00022191,2]
[366782727,1750449043923,-483.51,0.00022191,2]
[366782729,1750449043933,-460.0,0.00022191,2]
[366782731,1750449043944,-446.44973048,0.00022191,2]
[366782733,1750449043953,-460.0,0.00022191,2]
[366782735,1750449043963,-411.55068324,0.00022191,2]
[366782737,1750449043972,-408.2559645,0.00022191,2]
[366782739,1750449043983,-460.0,0.00022191,2]
[366782740,1750449043992,-460.0,0.00022191,2]
[366782742,1750449044001,-460.0,0.00022191,2]
[366782744,1750449044012,-460.0,0.00022191,2]
[366782746,1750449044022,-460.0,0.00022191,2]
[366782748,1750449044031,-418.0538699,0.00022191,2]
[366782750,1750449044041,-460.0,0.00022191,2]
[366782765,1750449044174,-460.0,0.00022191,2]
[366782766,1750449044184,-409.34226694,0.00022191,2]
[366782927,1750449045813,-30.65773306,0.00022191,2]
[366782929,1750449045823,-413.61526694,0.00022191,2]
[366782934,1750449045865,-46.38473306,0.00022191,2]
[366782936,1750449045874,-430.0,0.00022191,2]
[366782938,1750449045883,-460.0,0.00022191,2]
[366782939,1750449045893,-460.0,0.00022191,2]
[366782941,1750449045903,-89.5293162,0.00022191,2]
[366784029,1750449418523,-160.0,0.00019151,2]
[366784030,1750449443572,249.327797,0.00013699,2]
[366784032,1750449474280,4789.99451916,0.00019102,2]
[366784034,1750449652773,-81.982568,0.00019151,2]
[366784035,1750449652794,-218.017432,0.00019642,2]
[366784036,1750449660105,-163.01618379,0.00019642,2]
[366784037,1750449660128,-6.00402721,0.00019642,2]
[366784038,1750449663270,-151.0,0.00019642,2]
[366784039,1750449820407,5000.0,0.0001837,2]
[366784040,1750449820634,2147.05014223,0.00016,2]
[366784041,1750449877853,2131.2766115,0.00018728,2]
[366784042,1750449922685,182.1979162,0.00018737,2]
[366784043,1750450006827,419.0046513,0.00018769,2]
[366784044,1750450042092,693.01536807,0.000189,2]
[366784045,1750450074796,462.01024538,0.000189,2]
[366784046,1750450080155,666.0,0.00018727,2]
[366784050,1750450210783,-153.49582985,0.00019178,2]
[366784083,1750450232218,-39.82912515,0.00019178,2]
[366784084,1750450232227,-2.96058909,0.00019642,2]
[366784085,1750450232237,-159.96461629,0.00019643,2]
[366784086,1750450232246,-175.29521816,0.00019732,2]
[366784087,1750450232255,-300.0,0.00019737,2]
[366784088,1750450232265,-300.0,0.00019737,2]
[366784089,1750450232275,-300.0,0.00019737,2]
[366784090,1750450232284,-1200.0,0.00019737,2]
[366784091,1750450232293,-500.0,0.00019738,2]
[366784092,1750450232302,-500.0,0.00019738,2]
[366784093,1750450232312,-500.0,0.00019738,2]
[366784094,1750450232321,-361.64909145,0.00019738,2]
[366784095,1750450232331,-186.67474246,0.00019738,2]
[366784096,1750450232341,-500.0,0.00019738,2]
[366784097,1750450232350,-504.59790517,0.00019738,2]
[366784098,1750450232359,-500.0,0.00019738,2]
[366784099,1750450232368,-500.0,0.00019738,2]
[366784100,1750450232378,-500.0,0.00019738,2]
[366784101,1750450232387,-500.0,0.00019738,2]
[366784102,1750450232397,-160.46240121,0.00019738,2]
[366784103,1750450232406,-370.12384066,0.00019738,2]
[366784104,1750450232415,-500.0,0.00019738,2]
[366784105,1750450232424,-295.38150556,0.00019738,2]
[366784106,1750450232434,-631.9053845,0.00019738,2]
[366784107,1750450232444,-500.0,0.00019738,2]
[366784108,1750450232453,-500.0,0.00019738,2]
[366784109,1750450232462,-500.0,0.00019738,2]
[366784110,1750450232472,-500.0,0.00019738,2]
[366784111,1750450232483,-500.0,0.00019738,2]
[366784112,1750450232493,-500.0,0.00019738,2]
[366784113,1750450232503,-500.0,0.00019738,2]
[366784114,1750450232512,-500.0,0.00019738,2]
[366784115,1750450232522,-372.9573964,0.00019738,2]
[366784116,1750450232533,-500.0,0.00019738,2]
[366784117,1750450232542,-500.0,0.00019738,2]
[366784118,1750450232552,-500.0,0.00019738,2]
[366784119,1750450232563,-470.53816714,0.00019738,2]
[366784120,1750450232572,-500.0,0.00019738,2]
[366784121,1750450232582,-500.0,0.00019738,2]
[366784122,1750450232591,-500.0,0.00019738,2]
[366784123,1750450232601,-500.0,0.00019738,2]
[366784124,1750450232610,-431.92405079,0.00019738,2]
[366784125,1750450232619,-500.0,0.00019738,2]
[366784126,1750450232629,-500.0,0.00019738,2]
[366784127,1750450232639,-500.0,0.00019738,2]
[366784128,1750450232649,-500.0,0.00019738,2]
[366784129,1750450232659,-162.0715638,0.00019738,2]
[366784130,1750450232669,-500.0,0.00019738,2]
[366784131,1750450232679,-500.0,0.00019738,2]
[366784132,1750450232688,-245.01885799,0.00019738,2]
[366784133,1750450232698,-500.0,0.00019738,2]
[366784134,1750450232707,-500.0,0.00019738,2]
[366784135,1750450232718,-500.0,0.00019738,2]
[366784136,1750450232727,-500.0,0.00019738,2]
[366784137,1750450232737,-500.0,0.00019738,2]
[366784138,1750450232747,-500.0,0.00019738,2]
[366784139,1750450232756,-500.0,0.00019738,2]
[366784140,1750450232765,-500.0,0.00019738,2]
[366784141,1750450232775,-500.0,0.00019738,2]
[366784142,1750450232784,-500.0,0.00019738,2]
[366784143,1750450232793,-500.0,0.00019738,2]
[366784144,1750450232803,-500.0,0.00019738,2]
[366784145,1750450232813,-500.0,0.00019738,2]
[366784146,1750450232822,-500.0,0.00019738,2]
[366784147,1750450232830,-623.85044552,0.00019738,2]
[366784148,1750450232839,-500.0,0.00019738,2]
[366784149,1750450232848,-500.0,0.00019738,2]
[366784150,1750450232858,-500.0,0.00019738,2]
[366784151,1750450232867,-500.0,0.00019738,2]
[366784152,1750450232876,-500.0,0.00019738,2]
[366784153,1750450232886,-550.91192893,0.00019738,2]
[366784154,1750450232895,-321.57922751,0.00019738,2]
[366784155,1750450232904,-550.91192893,0.00019738,2]
[366784156,1750450232913,-550.91192893,0.00019738,2]
[366784157,1750450232922,-550.91192893,0.00019738,2]
[366784158,1750450232931,-550.91192893,0.00019738,2]
[366784159,1750450232940,-550.91192893,0.00019738,2]
[366784160,1750450232949,-550.91192893,0.00019738,2]
[366784161,1750450232958,-550.91192893,0.00019738,2]
[366784162,1750450232967,-550.91192893,0.00019738,2]
[366784163,1750450232976,-550.91192893,0.00019738,2]
[366784164,1750450232986,-550.91192893,0.00019738,2]
[366784165,1750450232994,-550.91192893,0.00019738,2]
[366784166,1750450233003,-550.91192893,0.00019738,2]
[366784167,1750450233013,-550.91192893,0.00019738,2]
[366784168,1750450233023,-550.91192893,0.00019738,2]
[366784169,1750450233032,-550.91192893,0.00019738,2]
[366784170,1750450233042,-550.91192893,0.00019738,2]
[366784171,1750450233051,-550.91192893,0.00019738,2]
[366784172,1750450233059,-550.91192893,0.00019738,2]
[366784173,1750450233069,-550.91192893,0.00019738,2]
[366784174,1750450233078,-599.11672273,0.00019738,2]
[366784175,1750450233089,-599.11672273,0.00019738,2]
[366784176,1750450233098,-599.11672273,0.00019738,2]
[366784177,1750450233107,-599.11672273,0.00019738,2]
[366784178,1750450233117,-599.11672273,0.00019738,2]
[366784179,1750450233126,-599.11672273,0.00019738,2]
[366784180,1750450233135,-599.11672273,0.00019738,2]
[366784181,1750450233144,-599.11672273,0.00019738,2]
[366784182,1750450233154,-50000.0,0.00019739,2]
[366784183,1750450233163,-300.0,0.00019739,2]
[366784184,1750450233171,-500.0,0.00019739,2]
[366784185,1750450233181,-1985.96796438,0.00019744,2]
[366784186,1750450233190,-160.0,0.00019744,2]
[366784187,1750450233199,-10741.08698825,0.00019745,2]
[366784188,1750450233214,-14158.91301175,0.00019745,2]
[366784189,1750450233223,-500.0,0.00020013,2]
[366784190,1750450233233,-249.327797,0.00020187,2]
[366784191,1750450233243,-658.80896233,0.0002022,2]
[366784192,1750450233252,-239.27830092,0.00020287,2]
[366784193,1750450233262,-150.453,0.00020536,2]
[366784194,1750450233272,-500.0,0.00020548,2]
[366784195,1750450233281,-500.0,0.00020548,2]
[366784196,1750450233291,-500.0,0.00020548,2]
[366784197,1750450233302,-437.76555927,0.00020548,2]
[366784198,1750450233311,-500.0,0.00020548,2]
[366784199,1750450233320,-438.6009186,0.00020562,2]
[366784200,1750450233330,-1985.96796437,0.00020783,2]
[366784201,1750450233340,-1273.83,0.000208,2]
[366784202,1750450233351,-160.0,0.00020812,2]
[366784203,1750450233360,-12546.90244252,0.00020812,2]
[366784204,1750450233369,-160.0,0.00020812,2]
[366784205,1750450233380,-160.0,0.00020812,2]
[366784206,1750450233389,-846.08887863,0.00020812,2]
[366784207,1750450233399,-160.0,0.00020812,2]
[366784208,1750450233410,-501.91790565,0.00021,4]
[366784209,1750450233419,-500.0,0.00021064,2]
[366784210,1750450233429,-501.91790565,0.00021072,4]
[366784211,1750450233439,-160.0,0.00021114,2]
[366784212,1750450233448,-471.11250847,0.00021161,2]
[366784213,1750450233458,-300.0,0.0002118,2]
[366784214,1750450233468,-425.5250504,0.00021218,2]
[366784215,1750450233478,-501.91790565,0.00021245,4]
[366784216,1750450233491,-411.14380927,0.00021259,2]
[366784217,1750450233501,-500.0,0.00021294,2]
[366784218,1750450233510,-5059.63989866,0.00021328,2]
[366784219,1750450233519,-8282.49122083,0.00021328,2]
[366784220,1750450233530,-479.16931996,0.00021329,2]
[366784221,1750450233540,-625.25947612,0.00021359,2]
[366784222,1750450233549,-501.91790565,0.00021417,5]
[366784223,1750450233559,-420.0,0.00021497,2]
[366784224,1750450233569,-420.0,0.00021497,2]
[366784225,1750450233579,-420.0,0.00021499,2]
[366784226,1750450233590,-501.91790565,0.0002159,5]
[366784227,1750450233600,-500.0,0.00021612,2]
[366784228,1750450233610,-327.78,0.000217,2]
[366784229,1750450233619,-5000.0,0.00021704,2]
[366784230,1750450233629,-501.91790565,0.00021762,5]
[366784231,1750450233638,-1985.96796437,0.00021822,2]
[366784232,1750450233648,-160.0,0.00021842,2]
[366784233,1750450233657,-160.0,0.00021842,2]
[366784234,1750450233667,-1000.0,0.00021842,2]
[366784235,1750450233678,-230.06456406,0.00021846,2]
[366784236,1750450233687,-836.27303475,0.00021846,2]
[366784237,1750450233697,-523.92420239,0.00021846,2]
[366784238,1750450233706,-424.85694595,0.00021846,2]
[366784239,1750450233716,-160.0,0.00021846,2]
[366784240,1750450233726,-213.51557418,0.00021846,2]
[366784241,1750450233736,-160.0,0.00021846,2]
[366784242,1750450233746,-160.0,0.00021846,2]
[366784243,1750450233756,-3000.0,0.000219,2]
[366784244,1750450233767,-3000.0,0.0002191,2]
[366784245,1750450233777,-500.0,0.00021916,7]
[366784246,1750450233786,-440.0,0.00021917,2]
[366784247,1750450233796,-460.0,0.00021917,2]
[366784248,1750450233806,-460.0,0.00021917,2]